Workbook

Sheet 1. Utility_Info_
AB1: Algoma Power Inc.
AB2: Atikokan Hydro Inc.
AB3: Attawapiskat Power Corporation
AB4: Bluewater Power Distribution Corp.
AB5: Brant County Power
AB6: Brantford Power Inc.
AB7: Burlington Hydro Inc.
AB8: Cambridge and North Dumfries Hydro
AB9: Canadian Niagara Power Inc. – Eastern Ontario Power/Fort Erie/Port Colborne
AB10: Centre Wellington Hydro Ltd.
AB11: Chapleau Public Utilities Corporation
AB12: COLLUS Power Corp.
H13: Version | I13: 4 | AB13: Cooperative Hydro Embrun Inc.
AB14: E.L.K. Energy Inc.
C15: Utility Name | D15: PowerStream Inc. | AB15: Enersource Hydro Mississauga Inc.
AB16: Entegrus Powerlines Inc.
C17: Assigned EB Number | D17: EB-2015-0103 | AB17: ENWIN Utilities Ltd.
AB18: Erie Thames Powerlines Corp.
C19: Name and Title | D19: Tom Barrett, Manager, Rates Applications | AB19: Espanola Regional Hydro Distribution Corporation
AB20: Essex Powerlines Corporation
C21: Phone Number | D21: 905-532-4640 | AB21: Festival Hydro Inc.
AB22: Fort Albany Power Corporation
C23: Email Address | D23: tom.barrett@powerstream.ca | AB23: Fort Frances Power Corporation
AB24: Greater Sudbury Hydro Inc.
C25: Date | D25: 2015-02-24 | AB25: Grimsby Power Inc.
AB26: Guelph Hydro Electric Systems Inc.
C27: Last COS Re-based Year | D27: 2013 | AB27: Haldimand County Hydro Inc.
AB28: Halton Hills Hydro Inc.
AB29: Hearst Power Distribution Co. Ltd.
A30: Note: Drop-down lists are shaded blue; Input cells are shaded green.
AB32: Horizon Utilities Corporation
AB33: Hydro 2000 Inc.
AB34: Hydro Hawkesbury Inc.
AB35: Hydro One Brampton Networks Inc.
AB36: Hydro One Networks Inc.
AB37: Hydro One Remote Communities Inc.
AB38: Hydro Ottawa Limited
AB39: Innisfil Hydro Dist. Systems Limited
AB40: Kashechewan Power Corporation
AB41: Kenora Hydro Electric Corporation Ltd.
AB42: Kingston Hydro Corporation
AB43: Kitchener-Wilmot Hydro Inc.
AB44: Lakefront Utilities Inc.
AB45: Lakeland Power Distribution Ltd.
AB46: London Hydro Inc.
AB47: Midland Power Utility Corporation
AB48: Milton Hydro Distribution Inc.
AB49: Newmarket – Tay Power Distribution Ltd.
AB50: Niagara Peninsula Energy Inc.
AB51: Niagara-on-the-Lake Hydro Inc.
AB52: Norfolk Power Distribution Ltd.
AB53: North Bay Hydro Distribution Limited
AB54: Northern Ontario Wires Inc.
AB55: Oakville Hydro Distribution Inc.
AB56: Orangeville Hydro Limited
AB57: Orillia Power Distribution Corp.
AB58: Oshawa PUC Networks Inc.
AB59: Ottawa River Power Corporation
AB60: Parry Sound Power Corporation
AB61: Peterborough Distribution Inc.
AB62: PowerStream Inc.
AB63: PUC Distribution Inc.
AB64: Renfrew Hydro Inc.
AB65: Rideau St. Lawrence Distribution Inc.
AB66: St. Thomas Energy Inc.
AB67: Sioux Lookout Hydro Inc.
AB68: Thunder Bay Hydro Electricity Distribution
AB69: Tillsonburg Hydro Inc.
AB70: Toronto Hydro-Electric System Limited
AB71: Veridian Connections Inc.
AB72: Wasaga Distribution Inc.
AB73: Waterloo North Hydro Inc.
AB74: Welland Hydro Electric System Corp.
AB75: Wellington North Power Inc.
AB76: West Coast Huron Energy Inc.
AB77: Westario Power Inc.
AB78: Whitby Hydro Electric Corporation
AB79: Woodstock Hydro Services Inc.

Sheet 2. ICM_Costs
G18: 2014 | I18: 2015 | K18: Total
B19: Sheet 2: ICM Capital Cost Data | G19: Audited Actual | I19: Forecast
B39: 1 | C39: Capital Costs
E40: Asset Type
C41: ICP 1 UNDERGROUND CABLE REHABILITATION | E41: Asset type must be selected to enable calculations | G41: =IF(ISBLANK(G19),"",G19) -> Audited Actual | I41: =IF(ISBLANK(I19),"",I19) -> Forecast
C42: ICP 1.1 | E42: Poles | G42: 24226.04571 | K42: =SUM(G42,I42) -> 24226.04571
C44: ICP 1.2 | E44: Overhead Conductor | G44: 19822.86007 | K44: =SUM(G44,I44) -> 19822.86007
C46: ICP 1.3 | E46: Underground Conduit | G46: 2305442.174 | K46: =SUM(G46,I46) -> 2305442.174
C48: ICP 1.4 | E48: Underground Conductor | G48: 723815.9202 | K48: =SUM(G48,I48) -> 723815.9202
C50: ICP 1.5 | E50: Underground Injected Cable | G50: 3890145.035 | K50: =SUM(G50,I50) -> 3890145.035
C52: ICP 1.6 | E52: Underground Transformers | G52: 49233.94558 | K52: 49233.94558
C54: ICP 1.7 | E54: Overhead Transformers | G54: 393.280549 | K54: 393.280549
C56: ICP 1.8 | E56: Overhead Services | G56: 3551.20204 | K56: 3551.20204
C58: ICP 1.9 | K58: 0
C60: ICP 1.10 | K60: 0
C62: Total Underground Cable Rehabilitation | G62: =SUM(G42,G44,G46,G48,G50,G52,G54,G56,G58,G60) -> 7016630.463 | I62: =SUM(I42,I44,I46,I48,I50,I52,I54,I56,I58,I60) -> 0 | K62: =SUM(K42,K44,K46,K48,K50,K52,K54,K56,K58,K60) -> 7016630.463
E64: =E40 -> Asset Type
C65: ICP 2 SYSTEM RENEWAL - POLE REPLACEMENTS | G65: =G41 -> Audited Actual | I65: =I41 -> Forecast
C66: ICP 2.1. | E66: Poles | G66: 961466.176 | K66: =SUM(G66,I66) -> 961466.176
C68: ICP 2.2 | E68: Overhead Conductor | G68: 406930.5061 | K68: =SUM(G68,I68) -> 406930.5061
C70: ICP 2.3 | E70: Underground Conductor | G70: 56172.03787 | K70: =SUM(G70,I70) -> 56172.03787
C72: ICP 2.4 | E72: Overhead Transformers | G72: 117810.2585 | K72: =SUM(G72,I72) -> 117810.2585
C74: ICP 2.5 | E74: Underground Transformers | G74: 12989.85833 | K74: =SUM(G74,I74) -> 12989.85833
C76: ICP 2.6 | E76: Overhead Services | G76: 79026.06289 | K76: =SUM(G76,I76) -> 79026.06289
C78: ICP 2.7 | E78: Underground Conduit | G78: 19645.82481 | K78: =SUM(G78,I78) -> 19645.82481
C80: ICP 2.8 | E80: System Supervisory Equipment | G80: 174.762011 | K80: =SUM(G80,I80) -> 174.762011
C82: ICP 2.9 | E82: Distribution Station Equipment - Normally Primary below 50 kV | G82: 146.05567 | K82: =SUM(G82,I82) -> 146.05567
C84: ICP 2.10 | E84: Underground Injected Cable | G84: 50.753426 | K84: 50.753426
C86: Total System Renewal - Pole Replacements | G86: =SUM(G66,G68,G70,G72,G74,G76,G78,G80,G82,G84) -> 1654412.296 | I86: =SUM(I66,I68,I70,I72,I74,I76,I78,I80,I82,I84) -> 0 | K86: =SUM(K66,K68,K70,K72,K74,K76,K78,K80,K82,K84) -> 1654412.296
E88: =E64 -> Asset Type
C89: ICP 3 SYSTEM RENEWAL - STATION REPLACEMENTS | G89: =G65 -> Audited Actual | I89: =I65 -> Forecast
C90: ICP 3.1 | E90: Poles | G90: 25605.11345 | K90: =SUM(G90,I90) -> 25605.11345
C92: ICP 3.2 | E92: Overhead Conductor | G92: 79225.24886 | K92: =SUM(G92,I92) -> 79225.24886
C94: ICP 3.3 | E94: RTU's | G94: 79025.37089 | K94: =SUM(G94,I94) -> 79025.37089
C96: ICP 3.4 | E96: Underground Conductor | G96: 3329.213468 | K96: =SUM(G96,I96) -> 3329.213468
C98: ICP 3.5 | E98: Underground Transformers | G98: 73.706464 | K98: =SUM(G98,I98) -> 73.706464
C100: ICP 3.6 | E100: Overhead Services | G100: 509.155615 | K100: =SUM(G100,I100) -> 509.155615
C102: ICP 3.7 | E102: System Supervisory Equipment | G102: 319.640945 | K102: =SUM(G102,I102) -> 319.640945
C104: ICP 3.8 | E104: Distribution Station Equipment - Normally Primary below 50 kV | G104: 9922.59231 | K104: =SUM(G104,I104) -> 9922.59231
C106: ICP 3.9 | E106: Transformer Station Equipment - Normally Primary above 50 kV | G106: 125163.5414 | K106: =SUM(G106,I106) -> 125163.5414
C108: ICP 3.10 | K108: 0
C110: Total System Renewal - Station Replacements | G110: 323173.5834 | I110: =SUM(I90,I92,I94,I96,I98,I100,I102,I104,I106,I108) -> 0 | K110: =SUM(K90,K92,K94,K96,K98,K100,K102,K104,K106,K108) -> 323173.5834
E112: =E88 -> Asset Type
C113: ICP 4 SYSTEM RENEWAL - SWITCHGEAR & TRANFORMER REPLACEMENTS | G113: Audited Actual | I113: =I89 -> Forecast
C115: ICP 4.1 | E115: Poles | G115: 9421.245943 | K115: =SUM(G115,I115) -> 9421.245943
C117: ICP 4.2 | E117: Overhead Conductor | G117: 2502.198727 | K117: =SUM(G117,I117) -> 2502.198727
C119: ICP 4.3 | E119: Underground Conduit | G119: 186339.5254 | K119: =SUM(G119,I119) -> 186339.5254
C121: ICP 4.4 | E121: Underground Conductor | G121: 925518.76 | K121: =SUM(G121,I121) -> 925518.76
C123: ICP 4.5 | E123: Overhead Transformers | G123: 12.155148 | K123: =SUM(G123,I123) -> 12.155148
C125: ICP 4.6 | E125: Underground Transformers | G125: 165200.1217 | K125: =SUM(G125,I125) -> 165200.1217
C127: ICP 4.7 | E127: Overhead Services | G127: 23763.75562 | K127: =SUM(G127,I127) -> 23763.75562
C129: ICP 4.8 | E129: RTU's | G129: -7818.601714 | K129: =SUM(G129,I129) -> -7818.601714
C131: ICP 4.9 | E131: Distribution Station Equipment - Normally Primary below 50 kV | G131: 2216.903764 | K131: =SUM(G131,I131) -> 2216.903764
C133: ICP 4.10 | E133: Land Rights | G133: 18.617167 | K133: 18.617167
C135: Total System Renewal - Switchgear & Transformer ReplacementS | G135: 1307174.682 | I135: =SUM(I115,I117,I119,I121,I123,I125,I127,I129,I131,I133) -> 0 | K135: =SUM(K115,K117,K119,K121,K123,K125,K127,K129,K131,K133) -> 1307174.682
E137: =E112 -> Asset Type
C138: ICP 5 SYSTEM CAPACITY RELIEF | G138: Audited Actual | I138: =I113 -> Forecast
C140: ICP 5.1 | E140: Poles | G140: 285853.4446 | K140: =SUM(G140,I140) -> 285853.4446
C142: ICP 5.2 | E142: Overhead Conductor | G142: 193612.262 | K142: =SUM(G142,I142) -> 193612.262
C144: ICP 5.3 | E144: Underground Conduit | G144: 87407.26476 | K144: =SUM(G144,I144) -> 87407.26476
C146: ICP 5.4 | E146: Underground Conductor | G146: 75667.07667 | K146: =SUM(G146,I146) -> 75667.07667
C148: ICP 5.5 | E148: Overhead Transformers | G148: 10496.18091 | K148: =SUM(G148,I148) -> 10496.18091
C150: ICP 5.6 | E150: Overhead Services | G150: -470.079288 | K150: =SUM(G150,I150) -> -470.079288
C152: ICP 5.7 | E152: RTU's | G152: 2324.097059 | K152: =SUM(G152,I152) -> 2324.097059
C154: ICP 5.8 | K154: =SUM(G154,I154) -> 0
C156: ICP 5.9 | K156: =SUM(G156,I156) -> 0
C158: ICP 5.10 | K158: 0
C160: Total System Capacity Relief | G160: 654890.2467 | I160: =SUM(I140,I142,I144,I146,I148,I150,I152,I154,I156,I158) -> 0 | K160: =SUM(K140,K142,K144,K146,K148,K150,K152,K154,K156,K158) -> 654890.2467
C162: Total Capital Costs Related to Incremental Capital Projects (ICP) | G162: 10956281.27 | I162: =SUM(I62,I86,I110,I135,I160) -> 0 | K162: =SUM(K62,K86,K110,K135,K160) -> 10956281.27
E164: =E137 -> Asset Type
C165: OTHER CAPITAL COST | G165: Audited Actual | I165: =I138 -> Forecast
C167: A | K167: =SUM(G167,I167) -> 0
C169: B | K169: =SUM(G169,I169) -> 0
C171: C | K171: =SUM(G171,I171) -> 0
C173: Total Other Capital Costs | G173: =SUM(G167,G169,G171) -> 0 | I173: =SUM(I167,I169,I171) -> 0 | K173: =SUM(K167,K169,K171) -> 0
C175: Total ICM Capital Costs | G175: =G162+G173 -> 10956281.27 | I175: =I162+I173 -> 0 | K175: =K162+K173 -> 10956281.27
B178: 2 | C178: Aggregated ICM Costs by Category
C180: 2.1 | D180: Capital | E180: Account
C182: 2.1.1 | D182: Poles | E182: ='3. Cost_of_Service_Parameters'!E45 -> 1830 | G182: =SUMIF($E$42:$E$171,$D182,G$42:G$171) -> 1306572.026 | I182: =SUMIF($E$42:$E$171,$D182,I$42:I$171) -> 0 | K182: =SUM(G182:J182) -> 1306572.026
C184: 2.1.2 | D184: Overhead Conductor | E184: ='3. Cost_of_Service_Parameters'!E47 -> 1835 | G184: =SUMIF($E$42:$E$171,$D184,G$42:G$171) -> 702093.0757 | I184: =SUMIF($E$42:$E$171,$D184,I$42:I$171) -> 0 | K184: =SUM(G184:J184) -> 702093.0757
C186: 2.1.3 | D186: Underground Conduit | E186: ='3. Cost_of_Service_Parameters'!E49 -> 1840 | G186: =SUMIF($E$42:$E$171,$D186,G$42:G$171) -> 2598834.789 | I186: =SUMIF($E$42:$E$171,$D186,I$42:I$171) -> 0 | K186: =SUM(G186:J186) -> 2598834.789
C188: 2.1.4 | D188: Underground Conductor | E188: ='3. Cost_of_Service_Parameters'!E51 -> 1845 | G188: =SUMIF($E$42:$E$171,$D188,G$42:G$171) -> 1784503.008 | I188: =SUMIF($E$42:$E$171,$D188,I$42:I$171) -> 0 | K188: =SUM(G188:J188) -> 1784503.008
C190: 2.1.5 | D190: Underground Injected Cable | E190: ='3. Cost_of_Service_Parameters'!E53 -> 1846 | G190: =SUMIF($E$42:$E$171,$D190,G$42:G$171) -> 3890195.789 | I190: =SUMIF($E$42:$E$171,$D190,I$42:I$171) -> 0 | K190: =SUM(G190:J190) -> 3890195.789
C192: 2.1.6 | D192: Overhead Transformers | E192: ='3. Cost_of_Service_Parameters'!E55 -> 1849 | G192: =SUMIF($E$42:$E$171,$D192,G$42:G$171) -> 128711.8751 | I192: =SUMIF($E$42:$E$171,$D192,I$42:I$171) -> 0 | K192: =SUM(G192:J192) -> 128711.8751
C194: 2.1.7 | D194: Underground Transformers | E194: ='3. Cost_of_Service_Parameters'!E57 -> 1850 | G194: =SUMIF($E$42:$E$171,$D194,G$42:G$171) -> 227497.6321 | I194: =SUMIF($E$42:$E$171,$D194,I$42:I$171) -> 0 | K194: =SUM(G194:J194) -> 227497.6321
C196: 2.1.8 | D196: Overhead Services | E196: ='3. Cost_of_Service_Parameters'!E59 -> 1855 | G196: =SUMIF($E$42:$E$171,$D196,G$42:G$171) -> 106380.0969 | I196: =SUMIF($E$42:$E$171,$D196,I$42:I$171) -> 0 | K196: =SUM(G196:J196) -> 106380.0969
C198: 2.1.9 | D198: RTU's | E198: ='3. Cost_of_Service_Parameters'!E61 -> 1981 | G198: =SUMIF($E$42:$E$171,$D198,G$42:G$171) -> 73530.86624 | I198: =SUMIF($E$42:$E$171,$D198,I$42:I$171) -> 0 | K198: =SUM(G198:J198) -> 73530.86624
C200: 2.1.10 | D200: System Supervisory Equipment | E200: 1980 | G200: =SUMIF($E$42:$E$171,$D200,G$42:G$171) -> 494.402956 | I200: =SUMIF($E$42:$E$171,$D200,I$42:I$171) -> 0 | K200: =SUM(G200:J200) -> 494.402956
C202: 2.1.11 | D202: Distribution Station Equipment - Normally Primary below 50 kV | E202: 1820 | G202: =SUMIF($E$42:$E$171,$D202,G$42:G$171) -> 12285.55174 | I202: 0 | K202: 12285.55174
C204: 2.1.12 | D204: Transformer Station Equipment - Normally Primary above 50 kV | E204: 1815 | G204: 125163.5414 | I204: 0 | K204: 125163.5414
C206: 2.1.13 | D206: Land Rights | E206: 1612 | G206: 18.617167 | I206: 0 | K206: 18.617167
C208: 2.1.14
D211: Total Capital Costs | G211: =SUM(G182:G209) -> 10956281.27 | I211: =SUM(I182:I209) -> 0 | K211: =SUM(K182:K209) -> 10956281.27
G212: =IF(G211=G175," ","Error") ->  | I212: =IF(I211=I175,"","Error") ->  | K212: =IF(K211=K175,"","Error") -> 

Sheet 3. Cost_of_Service_Parameters
B17: Sheet 3: Parameters and Rates
G19: 2014 | I19: 2015
B20: Cost of Capital
C21: Capital Structure
D22: Deemed Short-term Debt Capitalization | G22: 0.04 | I22: 0.04
D23: Deemed Long-term Debt Capitalization | G23: =60%-G22 -> 0.56 | I23: =G23-(I22-G22) -> 0.56 | K23: =I23-(K22-I22) -> 0.6 | M23: =K23-(M22-K22) -> 0.6
D24: Deemed Equity Capitalization | G24: =100%-G23-G25-G22 -> 0.4 | I24: =100%-I23-I25-I22 -> 0.4 | K24: =100%-K23-K25-K22 -> 0.4 | M24: =100%-M23-M25-M22 -> 0.4
D25: Preferred Shares
C26: Total | G26: =SUM(G22:G25) -> 1 | I26: =SUM(I22:I25) -> 1 | K26: =SUM(K22:K25) -> 1 | M26: =SUM(M22:M25) -> 1
C28: Cost of Capital Parameters
D29: Deemed Short-term Debt Rate | G29: 0.0208 | I29: 0.0216
D30: Long-term Debt Rate (actual/embedded/deemed)1 | G30: 0.0415 | I30: 0.0391
D31: Target Return on Equity (ROE) | G31: 0.0893 | I31: 0.0893
D32: Return on Preferred Shares
C33: WACC | G33: =SUMPRODUCT(G22:G25,G29:G32) -> 0.059792 | I33: =SUMPRODUCT(I22:I25,I29:I32) -> 0.05848 | K33: =SUMPRODUCT(K22:K25,K29:K32) -> 0 | M33: =SUMPRODUCT(M22:M25,M29:M32) -> 0
B35: Working Capital Allowance
C36: Working Capital Allowance Rate | G36: 0.13 | I36: 0.13
C37: (% of the sum of Cost of Power + controllable expenses)
B39: Taxes/PILs
C40: Aggregate Corporate Income Tax Rate | G40: 0.26 | I40: 0.265 | K40: 0.265 | M40: 0.265
C41: Capital Tax (until July 1st, 2010) | G41: 0 | I41: 0 | K41: 0 | M41: 0
B43: Depreciation Rates | E43: Account
B44: (expressed as expected useful life in years)
C45: Poles - years | E45: 1830 | G45: 45 | I45: 45
C46: - rate (%) | G46: =IF(G45=0,0,1/G45) -> 0.02222222222 | I46: =IF(I45=0,0,1/I45) -> 0.02222222222 | K46: =IF(K45=0,0,1/K45) -> 0 | M46: =IF(M45=0,0,1/M45) -> 0
C47: Overhead Conductor - years | E47: 1835 | G47: 40 | I47: 40
C48: - rate (%) | G48: =IF(G47=0,0,1/G47) -> 0.025 | I48: =IF(I47=0,0,1/I47) -> 0.025 | K48: =IF(K47=0,0,1/K47) -> 0 | M48: =IF(M47=0,0,1/M47) -> 0
C49: Underground Conduit - years | E49: 1840 | G49: 60 | I49: 60
C50: - rate (%) | G50: =IF(G49=0,0,1/G49) -> 0.01666666667 | I50: =IF(I49=0,0,1/I49) -> 0.01666666667 | K50: =IF(K49=0,0,1/K49) -> 0 | M50: =IF(M49=0,0,1/M49) -> 0
C51: Underground Conductor - years | E51: 1845 | G51: 45 | I51: 45
C52: - rate (%) | G52: =IF(G51=0,0,1/G51) -> 0.02222222222 | I52: =IF(I51=0,0,1/I51) -> 0.02222222222 | K52: =IF(K51=0,0,1/K51) -> 0 | M52: =IF(M51=0,0,1/M51) -> 0
C53: U/G Injected Cable - years | E53: 1846 | G53: 20 | I53: 20
C54: - rate (%) | G54: =IF(G53=0,0,1/G53) -> 0.05 | I54: =IF(I53=0,0,1/I53) -> 0.05 | K54: =IF(K53=0,0,1/K53) -> 0 | M54: =IF(M53=0,0,1/M53) -> 0
C55: Overhead Transformers - years | E55: 1849 | G55: 40 | I55: 40
C56: - rate (%) | G56: =IF(G55=0,0,1/G55) -> 0.025 | I56: =IF(I55=0,0,1/I55) -> 0.025 | K56: =IF(K55=0,0,1/K55) -> 0 | M56: =IF(M55=0,0,1/M55) -> 0
C57: Underground Transformers - years | E57: 1850 | G57: 30 | I57: 30
C58: - rate (%) | G58: =IF(G57=0,0,1/G57) -> 0.03333333333 | I58: =IF(I57=0,0,1/I57) -> 0.03333333333 | K58: =IF(K57=0,0,1/K57) -> 0 | M58: =IF(M57=0,0,1/M57) -> 0
C59: OH Services - years | E59: 1855 | G59: 40 | I59: 40
C60: - rate (%) | G60: =IF(G59=0,0,1/G59) -> 0.025 | I60: =IF(I59=0,0,1/I59) -> 0.025 | K60: =IF(K59=0,0,1/K59) -> 0 | M60: =IF(M59=0,0,1/M59) -> 0
C61: RTU's - years | E61: 1981 | G61: 15 | I61: 15
C62: - rate (%) | G62: =IF(G61=0,0,1/G61) -> 0.06666666667 | I62: =IF(I61=0,0,1/I61) -> 0.06666666667 | K62: =IF(K61=0,0,1/K61) -> 0 | M62: =IF(M61=0,0,1/M61) -> 0
C63: System Supervisory Equipment - years | E63: 1980 | G63: 15 | I63: 15
C64: - rate (%) | G64: 0.06666666667 | I64: 0.06666666667 | K64: 0 | M64: 0
C65: Distribution Station Equipment - years | E65: 1820 | G65: 30 | I65: 30
C66: - rate (%) | G66: 0.03333333333 | I66: 0.03333333333 | K66: 0 | M66: 0
C67: Transformer Station Equipment - years | E67: 1815 | G67: 40 | I67: 40
C68: - rate (%) | G68: 0.025 | I68: 0.025 | K68: 0 | M68: 0
C69: Land Rights - years | E69: 1612 | G69: 0 | I69: 0 | O69: no depreciation (ECE)
C70: - rate (%) | G70: 0 | I70: 0 | K70: 0 | M70: 0
B75: CCA Rates
C76: Poles - CCA Class | G76: 47 | I76: 47
C77: Pole - CCA Rate | G77: 0.08 | I77: 0.08
C79: Overhead Conductor - CCA Class | G79: 47 | I79: 47
C80: Overhead Conductor - CCA Rate | G80: 0.08 | I80: 0.08
C82: Underground Conduit - CCA Class | G82: 47 | I82: 47
C83: Underground Conduit - CCA Rate | G83: 0.08 | I83: 0.08
C85: Underground Conductor - CCA Class | G85: 47 | I85: 47
C86: Underground Conductor - CCA Rate | G86: 0.08 | I86: 0.08
C88: U/G Injected Cable - CCA Class | G88: 47 | I88: 47
C89: U/G Injected Cable - CCA Rate | G89: 0.08 | I89: 0.08
C91: Overhead Transformers - CCA Class | G91: 47 | I91: 47
C92: Overhead Transformers - CCA Rate | G92: 0.08 | I92: 0.08
C94: Underground Transformers - CCA Class | G94: 47 | I94: 47
C95: Underground Transformers - CCA Rate | G95: 0.08 | I95: 0.08
C97: OH Services - CCA Class | G97: 47 | I97: 47
C98: OH Services - CCA Rate | G98: 0.08 | I98: 0.08
C100: RTU's - CCA Class | G100: 8 | I100: 8
C101: RUT's - CCA Rate | G101: 0.2 | I101: 0.2
C103: System Supervisory Equipment - CCA Class | G103: 8 | I103: 8
C104: System Supervisory Equipment - CCA Rate | G104: 0.2 | I104: 0.2
C106: Distribution Station Equipment - CCA Class | G106: 47 | I106: 47
C107: Distribution Station Equipment - CCA Rate | G107: 0.08 | I107: 0.08
C109: Transformer Station Equipment - CCA Class | G109: 47 | I109: 47
C110: Transformer Station Equipment - CCA Rate | G110: 0.08 | I110: 0.08
C112: Land Rights - CCA Class
C113: Land Rights - CCA Rate
B116: Assumptions
B117: 1 | C117: Fiscal calendar year (January 1 to December 31) used.
B118: 3 | C118: Amortization is done on a striaght line basis and no "half-year" rule applied.

Sheet 4. ICM_Assets_and_Rate_Base
B17: Sheet 4: ICM Assets - Net Book Value
I18: 2014 | K18: 2015
B19: Net Fixed Assets - Poles
C21: Gross Book Value
D22: Opening Balance | K22: =I25 -> 1306572.026
D23: Capital Additions during year (from ICM Costs) | I23: ='2. ICM_Costs'!G182 -> 1306572.026 | K23: ='2. ICM_Costs'!I182 -> 0
D24: Retirements/Removals (if applicable)
D25: Closing Balance | I25: =I22+I23-I24 -> 1306572.026 | K25: =K22+K23-K24 -> 1306572.026
C27: Accumulated Depreciation
D28: Opening Balance | K28: =I31 -> -29034.9339
D29: Amortization expense during year | I29: =IF(ISERROR(-(I23/('3. Cost_of_Service_Parameters'!G45)+MIN((I22/'3. Cost_of_Service_Parameters'!G45),(I22+I28)))), 0, -(I23/('3. Cost_of_Service_Parameters'!G45)+MIN((I22/'3. Cost_of_Service_Parameters'!G45),(I22+I28)))) -> -29034.9339 | K29: =IF(ISERROR(-(K23/('3. Cost_of_Service_Parameters'!I45)+MIN((K22/'3. Cost_of_Service_Parameters'!I45),(K22+K28)))), 0, -(K23/('3. Cost_of_Service_Parameters'!I45)+MIN((K22/'3. Cost_of_Service_Parameters'!I45),(K22+K28)))) -> -29034.9339
D30: Retirements/Removals (if applicable)
D31: Closing Balance | I31: =I28+I29-I30 -> -29034.9339 | K31: =K28+K29-K30 -> -58069.86781
C33: Net Book Value
D34: Opening Balance | I34: =I22+I28 -> 0 | K34: =I35 -> 1277537.092
D35: Closing Balance | I35: =I25+I31 -> 1277537.092 | K35: =K25+K31 -> 1248502.158
D36: Incremental CAPEX | I36: =I35 -> 1277537.092 | K36: =AVERAGE(K34:K35) -> 1263019.625
B38: Net Fixed Assets - Overhead Conductor
C40: Gross Book Value
D41: Opening Balance | K41: =I44 -> 702093.0757
D42: Capital Additions during year (from ICM Costs) | I42: ='2. ICM_Costs'!G184 -> 702093.0757 | K42: ='2. ICM_Costs'!I184 -> 0
D43: Retirements/Removals (if applicable)
D44: Closing Balance | I44: =I41+I42-I43 -> 702093.0757 | K44: =K41+K42-K43 -> 702093.0757
C46: Accumulated Depreciation
D47: Opening Balance | K47: =I50 -> -17552.32689
D48: Amortization expense during year | I48: =IF(ISERROR(-(I42/('3. Cost_of_Service_Parameters'!G47)+MIN((I41/'3. Cost_of_Service_Parameters'!G47),(I41+I47)))), 0, -(I42/('3. Cost_of_Service_Parameters'!G47)+MIN((I41/'3. Cost_of_Service_Parameters'!G47),(I41+I47)))) -> -17552.32689 | K48: =IF(ISERROR(-(K42/('3. Cost_of_Service_Parameters'!I47*2)+MIN((K41/'3. Cost_of_Service_Parameters'!I47),(K41+K47)))), 0, -(K42/('3. Cost_of_Service_Parameters'!I47*2)+MIN((K41/'3. Cost_of_Service_Parameters'!I47),(K41+K47)))) -> -17552.32689
D49: Retirements/Removals (if applicable)
D50: Closing Balance | I50: =I47+I48-I49 -> -17552.32689 | K50: =K47+K48-K49 -> -35104.65379
C52: Net Book Value
D53: Opening Balance | I53: =I41+I47 -> 0 | K53: =I54 -> 684540.7488
D54: Closing Balance | I54: =I44+I50 -> 684540.7488 | K54: =K44+K50 -> 666988.4219
D55: Incremental CAPEX | I55: =I54 -> 684540.7488 | K55: =AVERAGE(K53:K54) -> 675764.5854
B57: Net Fixed Assets - Underground Conduit
C59: Gross Book Value
D60: Opening Balance | K60: =I63 -> 2598834.789
D61: Capital Additions during year (from ICM Costs) | I61: ='2. ICM_Costs'!G186 -> 2598834.789 | K61: ='2. ICM_Costs'!I186 -> 0
D62: Retirements/Removals (if applicable)
D63: Closing Balance | I63: =I60+I61-I62 -> 2598834.789 | K63: =K60+K61-K62 -> 2598834.789
C65: Accumulated Depreciation
D66: Opening Balance | K66: =I69 -> -43313.91314
D67: Amortization expense during year | I67: =IF(ISERROR(-(I61/('3. Cost_of_Service_Parameters'!G49)+MIN((I60/'3. Cost_of_Service_Parameters'!G49),(I60+I66)))), 0, -(I61/('3. Cost_of_Service_Parameters'!G49)+MIN((I60/'3. Cost_of_Service_Parameters'!G49),(I60+I66)))) -> -43313.91314 | K67: =IF(ISERROR(-(K61/('3. Cost_of_Service_Parameters'!I49*2)+MIN((K60/'3. Cost_of_Service_Parameters'!I49),(K60+K66)))), 0, -(K61/('3. Cost_of_Service_Parameters'!I49*2)+MIN((K60/'3. Cost_of_Service_Parameters'!I49),(K60+K66)))) -> -43313.91314
D68: Retirements/Removals (if applicable)
D69: Closing Balance | I69: =I66+I67-I68 -> -43313.91314 | K69: =K66+K67-K68 -> -86627.82629
C71: Net Book Value
D72: Opening Balance | I72: =I60+I66 -> 0 | K72: =I73 -> 2555520.875
D73: Closing Balance | I73: =I63+I69 -> 2555520.875 | K73: =K63+K69 -> 2512206.962
D74: Incremental CAPEX | I74: =I73 -> 2555520.875 | K74: =AVERAGE(K72:K73) -> 2533863.919
B76: Net Fixed Assets - Underground Conductor
C78: Gross Book Value
D79: Opening Balance | K79: =I82 -> 1784503.008
D80: Capital Additions during year (from ICM Costs) | I80: ='2. ICM_Costs'!G188 -> 1784503.008 | K80: ='2. ICM_Costs'!I188 -> 0
D81: Retirements/Removals (if applicable)
D82: Closing Balance | I82: =I79+I80-I81 -> 1784503.008 | K82: =K79+K80-K81 -> 1784503.008
C84: Accumulated Depreciation
D85: Opening Balance | K85: =I88 -> -39655.6224
D86: Amortization expense during year | I86: =IF(ISERROR(-(I80/('3. Cost_of_Service_Parameters'!G51)+MIN((I79/'3. Cost_of_Service_Parameters'!G51),(I79+I85)))), 0, -(I80/('3. Cost_of_Service_Parameters'!G51)+MIN((I79/'3. Cost_of_Service_Parameters'!G51),(I79+I85)))) -> -39655.6224 | K86: =IF(ISERROR(-(K80/('3. Cost_of_Service_Parameters'!I51*2)+MIN((K79/'3. Cost_of_Service_Parameters'!I51),(K79+K85)))), 0, -(K80/('3. Cost_of_Service_Parameters'!I51*2)+MIN((K79/'3. Cost_of_Service_Parameters'!I51),(K79+K85)))) -> -39655.6224
D87: Retirements/Removals (if applicable)
D88: Closing Balance | I88: =I85+I86-I87 -> -39655.6224 | K88: =K85+K86-K87 -> -79311.24481
C90: Net Book Value
D91: Opening Balance | I91: =I79+I85 -> 0 | K91: =I92 -> 1744847.386
D92: Closing Balance | I92: =I82+I88 -> 1744847.386 | K92: =K82+K88 -> 1705191.763
D93: Incremental CAPEX | I93: =I92 -> 1744847.386 | K93: =AVERAGE(K91:K92) -> 1725019.575
B95: Net Fixed Assets - U/G Injected Cable
C97: Gross Book Value
D98: Opening Balance | K98: =I101 -> 3890195.789
D99: Capital Additions during year (from ICM Costs) | I99: ='2. ICM_Costs'!G190 -> 3890195.789 | K99: ='2. ICM_Costs'!I190 -> 0
D100: Retirements/Removals (if applicable)
D101: Closing Balance | I101: =I98+I99-I100 -> 3890195.789 | K101: =K98+K99-K100 -> 3890195.789
C103: Accumulated Depreciation
D104: Opening Balance | K104: =I107 -> -194509.7894
D105: Amortization expense during year | I105: =IF(ISERROR(-(I99/('3. Cost_of_Service_Parameters'!G53)+MIN((I98/'3. Cost_of_Service_Parameters'!G53),(I98+I104)))), 0, -(I99/('3. Cost_of_Service_Parameters'!G53)+MIN((I98/'3. Cost_of_Service_Parameters'!G53),(I98+I104)))) -> -194509.7894 | K105: =IF(ISERROR(-(K99/('3. Cost_of_Service_Parameters'!I53*2)+MIN((K98/'3. Cost_of_Service_Parameters'!I53),(K98+K104)))), 0, -(K99/('3. Cost_of_Service_Parameters'!I53*2)+MIN((K98/'3. Cost_of_Service_Parameters'!I53),(K98+K104)))) -> -194509.7894
D106: Retirements/Removals (if applicable)
D107: Closing Balance | I107: =I104+I105-I106 -> -194509.7894 | K107: =K104+K105-K106 -> -389019.5789
C109: Net Book Value
D110: Opening Balance | I110: =I98+I104 -> 0 | K110: =I111 -> 3695685.999
D111: Closing Balance | I111: =I101+I107 -> 3695685.999 | K111: =K101+K107 -> 3501176.21
D112: Incremental CAPEX | I112: =I111 -> 3695685.999 | K112: =AVERAGE(K110:K111) -> 3598431.104
B114: Net Fixed Assets - OH Transformers
C116: Gross Book Value
D117: Opening Balance | K117: =I120 -> 128711.8751
D118: Capital Additions during year (from ICM Costs) | I118: ='2. ICM_Costs'!G192 -> 128711.8751 | K118: ='2. ICM_Costs'!I192 -> 0
D119: Retirements/Removals (if applicable)
D120: Closing Balance | I120: =I117+I118-I119 -> 128711.8751 | K120: =K117+K118-K119 -> 128711.8751
C122: Accumulated Depreciation
D123: Opening Balance | K123: =I126 -> -3217.796878
D124: Amortization expense during year | I124: =IF(ISERROR(-(I118/('3. Cost_of_Service_Parameters'!G55)+MIN((I117/'3. Cost_of_Service_Parameters'!G55),(I117+I123)))), 0, -(I118/('3. Cost_of_Service_Parameters'!G55)+MIN((I117/'3. Cost_of_Service_Parameters'!G55),(I117+I123)))) -> -3217.796878 | K124: =IF(ISERROR(-(K118/('3. Cost_of_Service_Parameters'!I55*2)+MIN((K117/'3. Cost_of_Service_Parameters'!I55),(K117+K123)))), 0, -(K118/('3. Cost_of_Service_Parameters'!I55*2)+MIN((K117/'3. Cost_of_Service_Parameters'!I55),(K117+K123)))) -> -3217.796878
D125: Retirements/Removals (if applicable)
D126: Closing Balance | I126: =I123+I124-I125 -> -3217.796878 | K126: =K123+K124-K125 -> -6435.593755
C128: Net Book Value
D129: Opening Balance | I129: =I117+I123 -> 0 | K129: =I130 -> 125494.0782
D130: Closing Balance | I130: =I120+I126 -> 125494.0782 | K130: =K120+K126 -> 122276.2813
D131: Incremental CAPEX | I131: =I130 -> 125494.0782 | K131: =AVERAGE(K129:K130) -> 123885.1798
B133: Net Fixed Assets - UG Transformers
C135: Gross Book Value
D136: Opening Balance | K136: =I139 -> 227497.6321
D137: Capital Additions during year (from ICM Costs) | I137: ='2. ICM_Costs'!G194 -> 227497.6321 | K137: ='2. ICM_Costs'!I194 -> 0
D138: Retirements/Removals (if applicable)
D139: Closing Balance | I139: =I136+I137-I138 -> 227497.6321 | K139: =K136+K137-K138 -> 227497.6321
C141: Accumulated Depreciation
D142: Opening Balance | K142: =I145 -> -7583.254403
D143: Amortization expense during year | I143: =IF(ISERROR(-(I137/('3. Cost_of_Service_Parameters'!G57)+MIN((I136/'3. Cost_of_Service_Parameters'!G57),(I136+I142)))), 0, -(I137/('3. Cost_of_Service_Parameters'!G57)+MIN((I136/'3. Cost_of_Service_Parameters'!G57),(I136+I142)))) -> -7583.254403 | K143: =IF(ISERROR(-(K137/('3. Cost_of_Service_Parameters'!I57*2)+MIN((K136/'3. Cost_of_Service_Parameters'!I57),(K136+K142)))), 0, -(K137/('3. Cost_of_Service_Parameters'!I57*2)+MIN((K136/'3. Cost_of_Service_Parameters'!I57),(K136+K142)))) -> -7583.254403
D144: Retirements/Removals (if applicable)
D145: Closing Balance | I145: =I142+I143-I144 -> -7583.254403 | K145: =K142+K143-K144 -> -15166.50881
C147: Net Book Value
D148: Opening Balance | I148: =I136+I142 -> 0 | K148: =I149 -> 219914.3777
D149: Closing Balance | I149: =I139+I145 -> 219914.3777 | K149: =K139+K145 -> 212331.1233
D150: Incremental CAPEX | I150: =I149 -> 219914.3777 | K150: =AVERAGE(K148:K149) -> 216122.7505
B152: Net Fixed Assets - OH Services
C154: Gross Book Value
D155: Opening Balance | K155: =I158 -> 106380.0969
D156: Capital Additions during year (from ICM Costs) | I156: ='2. ICM_Costs'!G196 -> 106380.0969 | K156: ='2. ICM_Costs'!I196 -> 0
D157: Retirements/Removals (if applicable)
D158: Closing Balance | I158: =I155+I156-I157 -> 106380.0969 | K158: =K155+K156-K157 -> 106380.0969
C160: Accumulated Depreciation
D161: Opening Balance | K161: =I164 -> -2659.502422
D162: Amortization expense during year | I162: =IF(ISERROR(-(I156/('3. Cost_of_Service_Parameters'!G59)+MIN((I155/'3. Cost_of_Service_Parameters'!G59),(I155+I161)))), 0, -(I156/('3. Cost_of_Service_Parameters'!G59)+MIN((I155/'3. Cost_of_Service_Parameters'!G59),(I155+I161)))) -> -2659.502422 | K162: =IF(ISERROR(-(K156/('3. Cost_of_Service_Parameters'!I59*2)+MIN((K155/'3. Cost_of_Service_Parameters'!I59),(K155+K161)))), 0, -(K156/('3. Cost_of_Service_Parameters'!I59*2)+MIN((K155/'3. Cost_of_Service_Parameters'!I59),(K155+K161)))) -> -2659.502422
D163: Retirements/Removals (if applicable)
D164: Closing Balance | I164: =I161+I162-I163 -> -2659.502422 | K164: =K161+K162-K163 -> -5319.004844
C166: Net Book Value
D167: Opening Balance | I167: =I155+I161 -> 0 | K167: =I168 -> 103720.5945
D168: Closing Balance | I168: =I158+I164 -> 103720.5945 | K168: =K158+K164 -> 101061.092
D169: Incremental CAPEX | I169: =I168 -> 103720.5945 | K169: =AVERAGE(K167:K168) -> 102390.8432
B171: Net Fixed Assets - RTUs
C173: Gross Book Value
D174: Opening Balance | K174: =I177 -> 73530.86624
D175: Capital Additions during year (from ICM Costs) | I175: ='2. ICM_Costs'!G198 -> 73530.86624 | K175: ='2. ICM_Costs'!I198 -> 0
D176: Retirements/Removals (if applicable)
D177: Closing Balance | I177: =I174+I175-I176 -> 73530.86624 | K177: =K174+K175-K176 -> 73530.86624
C179: Accumulated Depreciation
D180: Opening Balance | K180: =I183 -> -4902.057749
D181: Amortization expense during year | I181: =IF(ISERROR(-(I175/('3. Cost_of_Service_Parameters'!G61)+MIN((I174/'3. Cost_of_Service_Parameters'!G61),(I174+I180)))), 0, -(I175/('3. Cost_of_Service_Parameters'!G61)+MIN((I174/'3. Cost_of_Service_Parameters'!G61),(I174+I180)))) -> -4902.057749 | K181: =IF(ISERROR(-(K175/('3. Cost_of_Service_Parameters'!I61*2)+MIN((K174/'3. Cost_of_Service_Parameters'!I61),(K174+K180)))), 0, -(K175/('3. Cost_of_Service_Parameters'!I61*2)+MIN((K174/'3. Cost_of_Service_Parameters'!I61),(K174+K180)))) -> -4902.057749
D182: Retirements/Removals (if applicable)
D183: Closing Balance | I183: =I180+I181-I182 -> -4902.057749 | K183: =K180+K181-K182 -> -9804.115499
C185: Net Book Value
D186: Opening Balance | I186: =I174+I180 -> 0 | K186: =I187 -> 68628.80849
D187: Closing Balance | I187: =I177+I183 -> 68628.80849 | K187: =K177+K183 -> 63726.75074
D188: Incremental CAPEX | I188: =I187 -> 68628.80849 | K188: =AVERAGE(K186:K187) -> 66177.77962
B191: Net Fixed Assets - System Supervisory Equipment
C193: Gross Book Value
D194: Opening Balance | K194: =I197 -> 494.402956
D195: Capital Additions during year (from ICM Costs) | I195: ='2. ICM_Costs'!G200 -> 494.402956 | K195: ='2. ICM_Costs'!I218 -> 0
D196: Retirements/Removals (if applicable)
D197: Closing Balance | I197: =I194+I195-I196 -> 494.402956 | K197: =K194+K195-K196 -> 494.402956
C199: Accumulated Depreciation
D200: Opening Balance | K200: =I203 -> -32.96019707
D201: Amortization expense during year | I201: =IF(ISERROR(-(I195/('3. Cost_of_Service_Parameters'!G63)+MIN((I194/'3. Cost_of_Service_Parameters'!G63),(I194+I200)))), 0, -(I195/('3. Cost_of_Service_Parameters'!G63)+MIN((I194/'3. Cost_of_Service_Parameters'!G63),(I194+I200)))) -> -32.96019707 | K201: =IF(ISERROR(-(K195/('3. Cost_of_Service_Parameters'!I63*2)+MIN((K194/'3. Cost_of_Service_Parameters'!I63),(K194+K200)))), 0, -(K195/('3. Cost_of_Service_Parameters'!I63*2)+MIN((K194/'3. Cost_of_Service_Parameters'!I63),(K194+K200)))) -> -32.96019707
D202: Retirements/Removals (if applicable)
D203: Closing Balance | I203: =I200+I201-I202 -> -32.96019707 | K203: =K200+K201-K202 -> -65.92039413
C205: Net Book Value
D206: Opening Balance | I206: =I194+I200 -> 0 | K206: =I207 -> 461.4427589
D207: Closing Balance | I207: =I197+I203 -> 461.4427589 | K207: =K197+K203 -> 428.4825619
D208: Incremental CAPEX | I208: =I207 -> 461.4427589 | K208: =AVERAGE(K206:K207) -> 444.9626604
B211: Net Fixed Assets - Distribution Station Equipment
C213: Gross Book Value
D214: Opening Balance | K214: =I217 -> 12285.55174
D215: Capital Additions during year (from ICM Costs) | I215: ='2. ICM_Costs'!G202 -> 12285.55174 | K215: ='2. ICM_Costs'!I238 -> 0
D216: Retirements/Removals (if applicable)
D217: Closing Balance | I217: =I214+I215-I216 -> 12285.55174 | K217: =K214+K215-K216 -> 12285.55174
C219: Accumulated Depreciation
D220: Opening Balance | K220: =I223 -> -409.5183915
D221: Amortization expense during year | I221: =IF(ISERROR(-(I215/('3. Cost_of_Service_Parameters'!G65)+MIN((I214/'3. Cost_of_Service_Parameters'!G65),(I214+I220)))), 0, -(I215/('3. Cost_of_Service_Parameters'!G65)+MIN((I214/'3. Cost_of_Service_Parameters'!G65),(I214+I220)))) -> -409.5183915 | K221: =IF(ISERROR(-(K215/('3. Cost_of_Service_Parameters'!I65*2)+MIN((K214/'3. Cost_of_Service_Parameters'!I65),(K214+K220)))), 0, -(K215/('3. Cost_of_Service_Parameters'!I65*2)+MIN((K214/'3. Cost_of_Service_Parameters'!I65),(K214+K220)))) -> -409.5183915
D222: Retirements/Removals (if applicable)
D223: Closing Balance | I223: =I220+I221-I222 -> -409.5183915 | K223: =K220+K221-K222 -> -819.0367829
C225: Net Book Value
D226: Opening Balance | I226: =I214+I220 -> 0 | K226: =I227 -> 11876.03335
D227: Closing Balance | I227: =I217+I223 -> 11876.03335 | K227: =K217+K223 -> 11466.51496
D228: Incremental CAPEX | I228: =I227 -> 11876.03335 | K228: =AVERAGE(K226:K227) -> 11671.27416
B231: Net Fixed Assets - Transformer Station Equipment
C233: Gross Book Value
D234: Opening Balance | K234: =I237 -> 125163.5414
D235: Capital Additions during year (from ICM Costs) | I235: ='2. ICM_Costs'!G204 -> 125163.5414 | K235: ='2. ICM_Costs'!I258 -> 0
D236: Retirements/Removals (if applicable)
D237: Closing Balance | I237: =I234+I235-I236 -> 125163.5414 | K237: =K234+K235-K236 -> 125163.5414
C239: Accumulated Depreciation
D240: Opening Balance | K240: =I243 -> -3129.088534
D241: Amortization expense during year | I241: =IF(ISERROR(-(I235/('3. Cost_of_Service_Parameters'!G67)+MIN((I234/'3. Cost_of_Service_Parameters'!G67),(I234+I240)))), 0, -(I235/('3. Cost_of_Service_Parameters'!G67)+MIN((I234/'3. Cost_of_Service_Parameters'!G67),(I234+I240)))) -> -3129.088534 | K241: =IF(ISERROR(-(K235/('3. Cost_of_Service_Parameters'!I67*2)+MIN((K234/'3. Cost_of_Service_Parameters'!I67),(K234+K240)))), 0, -(K235/('3. Cost_of_Service_Parameters'!I67*2)+MIN((K234/'3. Cost_of_Service_Parameters'!I67),(K234+K240)))) -> -3129.088534
D242: Retirements/Removals (if applicable)
D243: Closing Balance | I243: =I240+I241-I242 -> -3129.088534 | K243: =K240+K241-K242 -> -6258.177068
C245: Net Book Value
D246: Opening Balance | I246: =I234+I240 -> 0 | K246: =I247 -> 122034.4528
D247: Closing Balance | I247: =I237+I243 -> 122034.4528 | K247: =K237+K243 -> 118905.3643
D248: Incremental CAPEX | I248: =I247 -> 122034.4528 | K248: =AVERAGE(K246:K247) -> 120469.9086
B251: Net Fixed Assets - Land Rights
C253: Gross Book Value
D254: Opening Balance | K254: =I257 -> 18.617167
D255: Capital Additions during year (from ICM Costs) | I255: ='2. ICM_Costs'!G206 -> 18.617167 | K255: ='2. ICM_Costs'!I278 -> 0
D256: Retirements/Removals (if applicable)
D257: Closing Balance | I257: =I254+I255-I256 -> 18.617167 | K257: =K254+K255-K256 -> 18.617167
C259: Accumulated Depreciation
D260: Opening Balance | K260: =I263 -> 0
D261: Amortization expense during year | I261: =IF(ISERROR(-(I255/('3. Cost_of_Service_Parameters'!G69*2)+MIN((I254/'3. Cost_of_Service_Parameters'!G69),(I254+I260)))), 0, -(I255/('3. Cost_of_Service_Parameters'!G69*2)+MIN((I254/'3. Cost_of_Service_Parameters'!G69),(I254+I260)))) -> 0 | K261: =IF(ISERROR(-(K255/('3. Cost_of_Service_Parameters'!I69*2)+MIN((K254/'3. Cost_of_Service_Parameters'!I69),(K254+K260)))), 0, -(K255/('3. Cost_of_Service_Parameters'!I69*2)+MIN((K254/'3. Cost_of_Service_Parameters'!I69),(K254+K260)))) -> 0
D262: Retirements/Removals (if applicable)
D263: Closing Balance | I263: =I260+I261-I262 -> 0 | K263: =K260+K261-K262 -> 0
C265: Net Book Value
D266: Opening Balance | I266: =I254+I260 -> 0 | K266: =I267 -> 18.617167
D267: Closing Balance | I267: =I257+I263 -> 18.617167 | K267: =K257+K263 -> 18.617167
D268: Incremental CAPEX | I268: =I267 -> 18.617167 | K268: =AVERAGE(K266:K267) -> 18.617167
D275: Additions | I275: =I23+I42+I61+I80+I99+I118+I137+I156+I175+I195+I215+I235+I255 -> 10956281.27 | J275: =J23+J42+J61+J80+J99+J118+J137+J156+J175+J195+J215+J235+J255 -> 0 | K275: 0
D276: Incremental CAPEX | I276: =I36+I55+I74+I93+I112+I131+I150+I169+I188+I208+I228+I248+I268 -> 10610280.51 | J276: =J36+J55+J74+J93+J112+J131+J150+J169+J188+J208+J228+J248+J268 -> 0 | K276: 10437280.12
D277: Total Amortization | I277: =I29+I48+I67+I86+I105+I124+I143+I162+I181+I201+I221+I241+I261 -> -346000.7643 | J277: =J29+J48+J67+J86+J105+J124+J143+J162+J181+J201+J221+J241+J261 -> 0 | K277: -346000.7643

Sheet 5. UCC_Calculation
A18: Sheet 6: CCA For PILs Calculation
A20: UCC/Class 47 | D20: ='2. ICM_Costs'!G18 -> 2014 | F20: ='2. ICM_Costs'!I18 -> 2015
D21: ='2. ICM_Costs'!G19 -> Audited Actual | F21: ='2. ICM_Costs'!I19 -> Forecast
A23: Opening UCC | D23: 0 | F23: =D26-D31 -> 10011675.52
A24: Capital Additions | D24: ='4. ICM_Assets_and_Rate_Base'!I275-D38 -> 10882256 | F24: ='4. ICM_Assets_and_Rate_Base'!K275-F38 -> 0
A25: Retirements/Removals (if applicable)
A26: UCC Full Year | D26: =SUM(D23:D24)-D25 -> 10882256 | F26: =SUM(F23:F24)-F25 -> 10011675.52
F27: =IF(((F24-F25)/2)<0, 0, (F24-F25)/2) -> 0
F28: =F27+F23 -> 10011675.52
A29: CCA Rate Class | D29: ='3. Cost_of_Service_Parameters'!G76 -> 47 | F29: ='3. Cost_of_Service_Parameters'!I76 -> 47
A30: CCA Rate | D30: ='3. Cost_of_Service_Parameters'!G77 -> 0.08 | F30: ='3. Cost_of_Service_Parameters'!I77 -> 0.08
A31: CCA | D31: =D26*D30 -> 870580.4801 | F31: =F28*F30 -> 800934.0417
A32: Closing UCC | D32: =IF((D26-D31)<0, 0, D26-D31) -> 10011675.52 | F32: =IF((F26-F31)<0, 0, F26-F31) -> 9210741.479
A34: UCC/Class 8 | D34: =D20 -> 2014 | F34: 2015
D35: Audited Actual | F35: Forecast
A37: Opening UCC | D37: 0 | F37: =D40-D45 -> 59220.21536
A38: Capital Additions RTU's | D38: ='2. ICM_Costs'!G198+'2. ICM_Costs'!G200 -> 74025.2692 | F38: ='2. ICM_Costs'!I198 -> 0
A39: Retirements/Removals (if applicable)
A40: UCC Full Year | D40: =SUM(D37:D38)-D39 -> 74025.2692 | F40: =SUM(F37:F38)-F39 -> 59220.21536
F41: =IF((SUM(F38:F38)/2)<0, 0, SUM(F38:F38)/2) -> 0
F42: =F41+F37 -> 59220.21536
A43: CCA Rate Class | D43: ='3. Cost_of_Service_Parameters'!G100 -> 8 | F43: ='3. Cost_of_Service_Parameters'!I100 -> 8
A44: CCA Rate | D44: ='3. Cost_of_Service_Parameters'!G101 -> 0.2 | F44: ='3. Cost_of_Service_Parameters'!I101 -> 0.2
A45: CCA | D45: =D40*D44 -> 14805.05384 | F45: =F44*F42 -> 11844.04307
A46: Closing UCC | D46: =IF((D40-D45)<0, 0, D40-D45) -> 59220.21536 | F46: =IF((F40-F45)<0, 0, F40-F45) -> 47376.17228

Sheet 6. ICMIRR
A11: Sheet 6: | C11: Incremental Capital Adjustment
I24: 2014 IRM
C26: Return on Rate Base
C27: Incremental Capital CAPEX | F27: ='4. ICM_Assets_and_Rate_Base'!I275 -> 10956281.27 | G27: B | K27: ='[3]E4.1 IncrementalCapitalAdjust'!F27 -> 11326840.1
C28: Depreciation Expense | F28: =-'4. ICM_Assets_and_Rate_Base'!I277 -> 346000.7643 | G28: C | K28: ='[3]E4.1 IncrementalCapitalAdjust'!F28 -> 260581.5821
C29: Incremental Capital CAPEX to be included in Rate Base | F29: =F27-F28 -> 10610280.51 | G29: D = B - C | K29: =K27-K28 -> 11066258.52
C31: Deemed ShortTerm Debt % | D31: ='3. Cost_of_Service_Parameters'!G22 -> 0.04 | E31: E | F31: =F29*D31 -> 424411.2202 | G31: G = D * E | I31: ='[3]E4.1 IncrementalCapitalAdjust'!$D31 -> 0.04 | K31: =K29*I31 -> 442650.3407
C32: Deemed Long Term Debt % | D32: ='3. Cost_of_Service_Parameters'!G23 -> 0.56 | E32: F | F32: =F29*D32 -> 5941757.083 | G32: H = D * F | I32: ='[3]E4.1 IncrementalCapitalAdjust'!$D32 -> 0.56 | K32: =K29*I32 -> 6197104.77
C34: Short Term Interest | D34: ='3. Cost_of_Service_Parameters'!G29 -> 0.0208 | E34: I | F34: =F31*D34 -> 8827.753381 | G34: K = G * I | I34: ='[3]E4.1 IncrementalCapitalAdjust'!$D34 -> 0.0208 | K34: =K31*I34 -> 9207.127088
C35: Long Term Interest | D35: ='3. Cost_of_Service_Parameters'!G30 -> 0.0415 | E35: J | F35: =F32*D35 -> 246582.919 | G35: L = H * J | I35: ='[3]E4.1 IncrementalCapitalAdjust'!$D35 -> 0.04145449304 | K35: =K32*I35 -> 256897.8366
C37: Return on Rate Base - Interest | F37: =SUM(F34:F35) -> 255410.6723 | G37: M = K + L | K37: =SUM(K34:K35) -> 266104.9637
N39: aaa
C40: Deemed Equity % | D40: ='3. Cost_of_Service_Parameters'!G24 -> 0.4 | E40: N | F40: =F29*D40 -> 4244112.202 | G40: P = D * N | I40: ='[3]E4.1 IncrementalCapitalAdjust'!$D40 -> 0.4 | K40: =K29*I40 -> 4426503.407
C42: Return on Rate Base -Equity | D42: ='3. Cost_of_Service_Parameters'!G31 -> 0.0893 | E42: O | F42: =F40*D42 -> 378999.2197 | G42: Q = P * O | I42: ='[3]E4.1 IncrementalCapitalAdjust'!$D42 -> 0.0893 | K42: =K40*I42 -> 395286.7543
C44: Return on Rate Base - Total | F44: =F37+F42 -> 634409.892 | G44: R = M + Q | K44: =K37+K42 -> 661391.718
C48: Amortization Expense
C50: Amortization Expense - Incremental | E50: C | F50: =F28 -> 346000.7643 | G50: S | K50: =K28 -> 260581.5821
C53: Grossed up PIL's
C55: Regulatory Taxable Income | E55: O | F55: =F42 -> 378999.2197 | G55: T | K55: =K42 -> 395286.7543
C57: Add Back Amortization Expense | E57: S | F57: =F50 -> 346000.7643 | G57: U | K57: =K50 -> 260581.5821
C59: Deduct CCA | F59: ='5. UCC_Calculation'!D31+'5. UCC_Calculation'!D45 -> 885385.5339 | G59: V | K59: ='[3]E4.1 IncrementalCapitalAdjust'!$F$59 -> 906147.2081
C61: Incremental Taxable Income | F61: =F55+F57-F59 -> -160385.5499 | G61: W = T + U - V | K61: =K55+K57-K59 -> -250278.8717
C63: Current Tax Rate (F1.1 Z-Factor Tax Changes) | D63: ='3. Cost_of_Service_Parameters'!G40 -> 0.26 | E63: X | I63: ='[3]E4.1 IncrementalCapitalAdjust'!$D$63 -> 0.26
C65: PIL's Before Gross Up | F65: =F61*D63 -> -41700.24298 | G65: Y = W * X | K65: =K61*I63 -> -65072.50663
C67: Incremental Grossed Up PIL's | F67: =F65/(1-D63) -> -56351.6797 | G67: Z = Y / ( 1 - X ) | K67: =K65/(1-I63) -> -87935.81977
C70: Ontario Capital Tax
C71: Incremental Capital CAPEX | F71: =F27 -> 10956281.27 | G71: AA | K71: =K27 -> 11326840.1
C73: Less : Available Capital Exemption (if any) | F73: 0 | G73: AB | K73: 0
C75: Incremental Capital CAPEX subject to OCT | F75: =F71-F73 -> 10956281.27 | G75: AC = AA - AB | K75: =K71-K73 -> 11326840.1
C77: Ontario Capital Tax Rate (F1.1 Z-Factor Tax Changes) | D77: 0 | E77: AD
C79: Incremental Ontario Capital Tax | F79: =F75*D77 -> 0 | G79: AE = AC * AD | K79: =K75*I77 -> 0
C82: Incremental Revenue Requirement
C83: Return on Rate Base - Total | E83: Q | F83: =F44 -> 634409.892 | G83: AF | K83: =K44 -> 661391.718
C84: Amortization Expense - Total | E84: S | F84: =F50 -> 346000.7643 | G84: AG | K84: =K50 -> 260581.5821
C85: Incremental Grossed Up PIL's | E85: Z | F85: =F67 -> -56351.6797 | G85: AH | K85: =K67 -> -87935.81977
C86: Incremental Ontario Capital Tax | E86: AE | F86: =F79 -> 0 | G86: AI | K86: =K79 -> 0
C88: Incremental Revenue Requirement | F88: =SUM(F83:F86) -> 924058.9767 | G88: AJ = AF + AG + AH + AI | K88: =SUM(K83:K86) -> 834037.4803

Sheet 7. Funding Adder Revs
B13: This worksheet calculates the funding adder revenues.
B17: Sheet 7: ICM Funding Adder Revenues
J20: Account 1511 - Sub-account ICM Funding Adder Revenues
B22: Prescribed Interest Rates | C22: Approved Deferral and Variance Accounts | D22: CWIP | F22: Date | G22: Year | H22: Quarter | J22: Opening Balance (Principal) | K22: Funding Adder Revenues | L22: Interest Rate | M22: Interest | N22: Principal & Interest (Cumm.) | P22: Board Approved ICM Funding Adder | Q22: Board Approved ICM Funding Adder (Cumm.)
B24: 2006 Q1 | F24: 2014-01-01 | G24: =YEAR(F24) -> 2014 | H24: =IF(MONTH(F24)=0,"",IF(MONTH(F24)<4,"Q1",IF(MONTH(F24)<7,"Q2",IF(MONTH(F24)<10,"Q3","Q4")))) -> Q1 | I24: =CONCATENATE(G24," ",H24) -> 2014 Q1 | J24: 0 | K24: 0 | L24: =VLOOKUP(I24,$B$22:$D$59,2) -> 0.0147 | M24: =ROUND(J24*L24/12,2) -> 0 | N24: =K24+M24 -> 0 | P24: 0 | Q24: =P24 -> 0
B25: 2006 Q2 | C25: 0.0414 | D25: 0.0468 | F25: 2014-02-01 | G25: =YEAR(F25) -> 2014 | H25: =IF(MONTH(F25)=0,"",IF(MONTH(F25)<4,"Q1",IF(MONTH(F25)<7,"Q2",IF(MONTH(F25)<10,"Q3","Q4")))) -> Q1 | I25: =CONCATENATE(G25," ",H25) -> 2014 Q1 | J25: =J24+K24 -> 0 | K25: 0 | L25: 0.0147 | M25: =ROUND(J25*L25/12,2) -> 0 | N25: =N24+K25+M25 -> 0 | P25: 0 | Q25: =Q24+P25 -> 0
B26: 2006 Q3 | C26: 0.0459 | D26: 0.0505 | F26: 2014-03-01 | G26: 2014 | H26: Q1 | I26: 2014 Q1 | J26: =J25+K25 -> 0 | K26: 81633.07 | L26: 0.0147 | M26: 0 | N26: =N25+K26+M26 -> 81633.07 | P26: 83403.74803 | Q26: =Q25+P26 -> 83403.74803
B27: 2006 Q4 | C27: 0.0459 | D27: 0.0472 | F27: 2014-04-01 | G27: 2014 | H27: Q2 | I27: 2014 Q2 | J27: 81633.07 | K27: 79489.14 | L27: 0.0147 | M27: 100 | N27: 161222.21 | P27: 83403.74803 | Q27: 166807.4961
B28: 2007 Q1 | C28: 0.0459 | D28: 0.0472 | F28: 2014-05-01 | G28: 2014 | H28: Q2 | I28: 2014 Q2 | J28: 161122.21 | K28: 101852.75 | L28: 0.0147 | M28: 197.37 | N28: 263272.33 | P28: 83403.74803 | Q28: 250211.2441
B29: 2007 Q2 | C29: 0.0459 | D29: 0.0472 | F29: 2014-06-01 | G29: 2014 | H29: Q2 | I29: 2014 Q2 | J29: 262974.96 | K29: 88915.12 | L29: 0.0147 | M29: 322.14 | N29: 352509.59 | P29: 83403.74803 | Q29: 333614.9921
B30: 2007 Q3 | C30: 0.0459 | D30: 0.0518 | F30: 2014-07-01 | G30: 2014 | H30: Q3 | I30: 2014 Q3 | J30: 351890.08 | K30: 96907.28 | L30: 0.0147 | M30: 431.07 | N30: 449847.94 | P30: 83403.74803 | Q30: 417018.7401
B31: 2007 Q4 | C31: 0.0514 | D31: 0.0518 | F31: 2014-08-01 | G31: 2014 | H31: Q3 | I31: 2014 Q3 | J31: 448797.36 | K31: 102961.39 | L31: 0.0147 | M31: 549.78 | N31: 553359.11 | P31: 83403.74803 | Q31: 500422.4882
B32: 2008 Q1 | C32: 0.0514 | D32: 0.0518 | F32: 2014-09-01 | G32: 2014 | H32: Q3 | I32: 2014 Q3 | J32: 551758.75 | K32: 98095.57 | L32: 0.0147 | M32: 675.9 | N32: 652130.58 | P32: 83403.74803 | Q32: 583826.2362
B33: 2008 Q2 | C33: 0.0408 | D33: 0.0518 | F33: 2014-10-01 | G33: 2014 | H33: Q4 | I33: 2014 Q4 | J33: 649854.32 | K33: 93325.99 | L33: 0.0147 | M33: 796.07 | N33: 746252.64 | P33: 83403.74803 | Q33: 667229.9842
B34: 2008 Q3 | C34: 0.0335 | D34: 0.0543 | F34: 2014-11-01 | G34: 2014 | H34: Q4 | I34: 2014 Q4 | J34: 743180.31 | K34: 87338.4 | L34: 0.0147 | M34: 910.4 | N34: 834501.44 | P34: 83403.74803 | Q34: 750633.7323
B35: 2008 Q4 | C35: 0.0335 | D35: 0.0543 | F35: 2014-12-01 | G35: 2014 | H35: Q4 | I35: 2014 Q4 | J35: 830518.71 | K35: 96981.68 | L35: 0.0147 | M35: 1017.39 | N35: 932500.51 | P35: 83403.74803 | Q35: 834037.4803
B36: 2009 Q1 | C36: 0.0245 | D36: 0.0661 | F36: 2015-01-01 | G36: 2015 | H36: Q1 | I36: 2015 Q1 | J36: 927500.39 | K36: =TRANSPOSE('[4]ICM Revenues'!$C$68:$N$68) -> 83727.57 | L36: 0.0147 | M36: 1136.19 | N36: 1017364.27 | P36: 69503.12336 | Q36: 903540.6037
B37: 2009 Q2 | C37: 0.01 | D37: 0.0661 | F37: 2015-02-01 | G37: 2015 | H37: Q1 | I37: 2015 Q1 | J37: 1011227.96 | K37: 79245.51 | L37: 0.0147 | M37: 1238.75 | N37: 1097848.53 | P37: 69503.12336 | Q37: 973043.727
B38: 2009 Q3 | C38: 0.0055 | D38: 0.0567 | F38: 2015-03-01 | G38: 2015 | H38: Q1 | I38: 2015 Q1 | J38: 1090473.47 | K38: 84672.98 | L38: 0.0147 | M38: 1335.83 | N38: 1183857.34 | P38: 69503.12336 | Q38: 1042546.85
B39: 2009 Q4 | C39: 0.0055 | D39: 0.0466 | F39: 2015-04-01 | G39: 2015 | H39: Q2 | I39: 2015 Q2 | J39: 1175146.45 | K39: 78624.76 | L39: 0.0147 | M39: 1439.55 | N39: 1263921.65 | P39: 69503.12336 | Q39: 1112049.974
B40: 2010 Q1 | C40: 0.0055 | D40: 0.0434 | F40: 2015-05-01 | G40: 2015 | H40: Q2 | I40: 2015 Q2 | J40: 1253771.21 | K40: -25693.26 | L40: 0.0147 | M40: 1535.87 | N40: 1239764.26 | P40: 69503.12336 | Q40: 1181553.097
B41: 2010 Q2 | C41: 0.0055 | D41: 0.0434 | F41: 2015-06-01 | G41: 2015 | H41: Q2 | I41: 2015 Q2 | J41: 1228077.95 | K41: 180243.32 | L41: 0.0147 | M41: 1504.4 | N41: 1421511.98 | P41: 69503.12336 | Q41: 1251056.22
B42: 2010 Q3 | C42: 0.0089 | D42: 0.0466 | F42: 2015-07-01 | G42: 2015 | H42: Q3 | I42: 2015 Q3 | J42: 1408321.27 | K42: 88985.05 | L42: 0.0147 | M42: 1725.19 | N42: 1512222.22 | P42: 69503.12336 | Q42: 1320559.344
B43: 2010 Q4 | C43: 0.012 | D43: 0.0401 | F43: 2015-08-01 | G43: 2015 | H43: Q3 | I43: 2015 Q3 | J43: 1497306.32 | K43: 84666 | L43: 0.0147 | M43: 1834.2 | N43: 1598722.42 | P43: 69503.12336 | Q43: 1390062.467
B44: 2011 Q1 | C44: 0.0147 | D44: 0.0429 | F44: 2015-09-01 | G44: 2015 | H44: Q3 | I44: 2015 Q3 | J44: 1581972.32 | K44: 84780.95 | L44: 0.0147 | M44: 1937.92 | N44: 1685441.29 | P44: 69503.12336 | Q44: 1459565.591
B45: 2011 Q2 | C45: 0.0147 | D45: 0.0429 | F45: 2015-10-01 | G45: 2015 | H45: Q4 | I45: 2015 Q4 | J45: 1666753.27 | K45: 84537.4 | L45: 0.0147 | M45: 2041.77 | N45: 1772020.46 | P45: 69503.12336 | Q45: 1529068.714
B46: 2011 Q3 | C46: 0.0147 | D46: 0.0429 | F46: 2015-11-01 | G46: 2015 | H46: Q4 | I46: 2015 Q4 | J46: 1751290.67 | K46: 70041.17 | L46: 0.0147 | M46: 2145.33 | N46: 1844206.96 | P46: 69503.12336 | Q46: 1598571.837
B47: 2011 Q4 | C47: =C46 -> 0.0147 | D47: 0.0392 | F47: 2015-12-01 | G47: 2015 | H47: Q4 | I47: 2015 Q4 | J47: 1821331.84 | K47: 76251.07 | L47: 0.0147 | M47: 2231.13 | N47: 1922689.16 | P47: 69503.12336 | Q47: 1668074.961
B48: 2012 Q1 | C48: 0.0147 | D48: 0.0392 | F48: 2016-01-01 | G48: 2016 | H48: Q1 | I48: 2016 Q1 | J48: 1897582.91 | K48: =TRANSPOSE('[4]ICM Revenues'!$C$116:$N$116) -> 84474.97276 | L48: =VLOOKUP(I48,$B$22:$E$67,2) -> 0.011 | M48: 1739.45 | N48: 2008903.583 | P48: 69503.12336 | Q48: 1737578.084
B49: 2012 Q2 | C49: 0.0147 | D49: 0.0323 | F49: 2016-02-01 | G49: 2016 | H49: Q1 | I49: 2016 Q1 | J49: 1982057.883 | K49: 81598.46288 | L49: =VLOOKUP(I49,$B$22:$D$67,2) -> 0.011 | M49: 1816.89 | N49: 2092318.936 | P49: 69503.12336 | Q49: 1807081.207
B50: 2012 Q3 | C50: 0.0147 | D50: 0.0323 | F50: 2016-03-01 | G50: 2016 | H50: Q1 | I50: 2016 Q1 | J50: 2063656.346 | K50: 80523.56012 | L50: =VLOOKUP(I50,$B$22:$D$67,2) -> 0.011 | M50: 1891.68 | N50: 2174734.176 | P50: 69503.12336 | Q50: 1876584.331
B51: 2012 Q4 | C51: 0.0147 | D51: 0.037 | F51: 2016-04-01 | G51: 2016 | H51: Q2 | I51: 2016 Q2 | J51: 2144179.906 | K51: 75457.13034 | L51: 0.011 | M51: 1965.5 | N51: 2252156.806 | P51: 69503.12336 | Q51: 1946087.454
B52: 2013 Q1 | C52: 0.0147 | D52: 0.037 | F52: 2016-05-01 | G52: 2016 | H52: Q2 | I52: 2016 Q2 | J52: 2219637.036 | K52: 77296.29834 | L52: 0.011 | M52: 2034.67 | N52: 2331487.774 | P52: 69503.12336 | Q52: 2015590.577
B53: 2013 Q2 | C53: 0.0147 | D53: 0.0317 | F53: 2016-06-01 | G53: 2016 | H53: Q2 | I53: 2016 Q2 | J53: 2296933.334 | K53: 84521.7795 | L53: 0.011 | M53: 2105.52 | N53: 2418115.074 | P53: 69503.12336 | Q53: 2085093.701
B54: 2013 Q3 | C54: 0.0147 | D54: 0.0317 | F54: 2016-07-01 | G54: 2016 | H54: Q3 | I54: 2016 Q3 | J54: 2381455.114 | K54: 93903.94535 | L54: 0.011 | M54: 2183 | N54: 2514202.019 | P54: 69503.12336 | Q54: 2154596.824
B55: 2013 Q4 | C55: 0.0147 | D55: 0.0317 | F55: 2016-08-01 | G55: 2016 | H55: Q3 | I55: 2016 Q3 | J55: 2475359.059 | K55: 89637.2468 | L55: 0.011 | M55: 2269.08 | N55: 2606108.346 | P55: 69503.12336 | Q55: 2224099.947
B56: 2014 Q1 | C56: 0.0147 | D56: 0.037 | F56: 2016-09-01 | G56: 2016 | H56: Q3 | I56: 2016 Q3 | J56: 2564996.306 | K56: 78722.43169 | L56: 0.011 | M56: 2351.25 | N56: 2687182.028 | P56: 69503.12336 | Q56: 2293603.071
B57: 2014 Q2 | C57: 0.0147 | D57: 0.0317 | F57: 2016-10-01 | G57: 2016 | H57: Q4 | I57: 2016 Q4 | J57: 2643718.738 | K57: 75365.63018 | L57: 0.011 | M57: 2423.41 | N57: 2764971.068 | P57: 69503.12336 | Q57: 2363106.194
B58: 2014 Q3 | C58: =C57 -> 0.0147 | D58: 0.0317 | F58: 2016-11-01 | G58: 2016 | H58: Q4 | I58: 2016 Q4 | J58: 2719084.368 | K58: 76087.09163 | L58: 0.011 | M58: 2492.49 | N58: 2843550.65 | P58: 69503.12336 | Q58: 2432609.318
B59: 2014 Q4 | C59: =C57 -> 0.0147 | D59: 0.0317 | F59: 2016-12-01 | G59: 2016 | H59: Q4 | I59: 2016 Q4 | J59: 2795171.46 | K59: 86533.41069 | L59: 0.011 | M59: 2562.24 | N59: 2932646.3 | P59: 69503.12336 | Q59: 2502112.441
B60: 2015 Q1 | C60: =C59 -> 0.0147 | D60: 0.0289
B61: 2015 Q2 | C61: 0.011 | D61: 0.0228
B62: 2015 Q3 | C62: 0.011 | D62: 0.0255
B63: 2015 Q4 | C63: 0.011 | D63: 0.0255
B64: 2016 Q1 | C64: 0.011 | D64: 0.0292
B65: 2016 Q2 | C65: 0.011 | D65: 0.0292 | F65: Total Funding Adder Revenues Collected | K65: =SUM(K24:K64) -> 2881704.87 | M65: =SUM(M24:M64) -> 50941.43 | N65: =K65+M65 -> 2932646.3
B66: 2016 Q3 | C66: 0.011 | D66: 0.0292
B67: 2016 Q4 | C67: 0.011 | D67: 0.0292
B70: NOTE: Funding adder revenues are up to December 2015 actuals and Jan-Dec 2016 forecasted 9approved rates x 2016 billing determinants)

Sheet 8. Opex Interest Annual
B13: This worksheet calculates the interest on amortization/depreciation expense, in the absence of monthly data.
B16: Sheet 8: Interest on Amortization (Annual Data)
B21: Year | D21: OM&A | F21: Amortization Expense | H21: Cumulative OM&A and Amortization Expense | J21: Average Cumulative OM&A and Amortization Expense | L21: Average Annual Prescribed Interest Rate for Deferral and Variance Accounts (from Sheet 7) | N21: Simple Interest on OM&A and Amortization Expenses
F22: (from Sheet 6)
B23: 2014 | D23: 0 | F23: ='6. ICMIRR '!$F$28 -> 346000.7643 | H23: =D23+F23 -> 346000.7643 | J23: =H23/2 -> 173000.3822 | L23: =AVERAGE('7. Funding Adder Revs'!C56:C59) -> 0.0147 | N23: =J23*L23 -> 2543.105618
B24: 2015 | D24: 0 | F24: =F23 -> 346000.7643 | H24: =H23+D24+F24 -> 692001.5287 | J24: =(H24+H23)/2 -> 519001.1465 | L24: =AVERAGE('7. Funding Adder Revs'!C60:C63) -> 0.011925 | N24: 6189.088672
B25: 2016 | D25: 0 | F25: =F23 -> 346000.7643 | H25: =H24+D25+F25 -> 1038002.293 | J25: =(H25+H24)/2 -> 865001.9109 | L25: =AVERAGE('7. Funding Adder Revs'!C64:C67) -> 0.011 | N25: 9515.021019
B26: Cumulative Interest to 2014 | N26: =SUM(N23:N23) -> 2543.105618
B27: Cumulative Interest to 2015 | N27: =SUM(N23:N24) -> 8732.19429
B28: Cumulative Interest to 2016 | N28: =SUM(N23:N25) -> 18247.21531

Sheet 9. IRR
B14: This worksheet calculates the ICM Incremental Revenue Requirement.
B17: Sheet 9: ICM Incremental Revenue Requirement
G20: 2014 | I20: 2015 | K20: 2016 | M20: Total
C22: Deferred and forecasted ICM Incremental Revenue Requirement (from Sheet 6) | G22: ='6. ICMIRR '!$F$88 -> 924058.9767 | I22: ='6. ICMIRR '!$F$88 -> 924058.9767 | K22: ='6. ICMIRR '!$F$88 -> 924058.9767 | M22: =SUM(G22:K22) -> 2772176.93
C24: Interest on Deferred and forecasted Amortization Expense (Sheet 8) | G24: ='8. Opex Interest Annual'!$N$23 -> 2543.105618 | I24: ='8. Opex Interest Annual'!$N$24 -> 6189.088672 | K24: ='8. Opex Interest Annual'!N25 -> 9515.021019 | M24: =SUM(G24:K24) -> 18247.21531
C27: ICM Funding Adder Revenues (from Sheet 7) | G27: =SUM('7. Funding Adder Revs'!K26:K35) -> 927500.39 | I27: =SUM('7. Funding Adder Revs'!K36:K47) -> 970082.52 | K27: =SUM('7. Funding Adder Revs'!K48:K59) -> 984121.9603 | M27: =SUM(G27:K27) -> 2881704.87
C29: ICM Funding Adder Interest (from Sheet 7) | G29: =SUM('7. Funding Adder Revs'!M27:M35) -> 5000.12 | I29: =SUM('7. Funding Adder Revs'!M36:M47) -> 20106.13 | K29: =SUM('7. Funding Adder Revs'!M48:M59) -> 25835.18 | M29: =SUM(G29:K29) -> 50941.43
C31: Net Deferred Revenue Requirement | G31: =(G22+G24)-(G27+G29) -> -5898.42773 | I31: =(I22+I24)-(I27+I29) -> -59940.58468 | K31: =(K22+K24)-(K27+K29) -> -76383.1426 | M31: =(M22+M24)-(M27+M29) -> -142222.155
